bitfinex-derivatives/quotes_BTCF0:USTF0_20241227
["timestamp","ask_amount","ask_price","bid_price","bid_amount"]
[1735268047115,0.00629473,95865.0,95860.0,0.28846879]
[1735268047417,0.052228,95862.0,95860.0,0.25455685]
[1735268047602,0.052228,95862.0,95860.0,0.24555685]
[1735268047802,0.052228,95862.0,95860.0,0.25055685]
[1735268048415,0.052228,95862.0,95860.0,0.24855685]
[1735268048615,0.052228,95862.0,95860.0,0.25055685]
[1735268048807,0.052228,95862.0,95860.0,0.24755685]
[1735268049014,0.052228,95862.0,95861.0,0.24555685]
[1735268049615,0.01064229,95870.0,95861.0,0.24555685]
[1735268049913,0.01276399,95884.0,95862.0,0.03390086]
[1735268050220,0.01276399,95884.0,95861.0,0.61295685]
[1735268050221,0.01276399,95884.0,95870.0,0.0939441]
[1735268050409,0.01276399,95884.0,95875.0,0.052221]
[1735268050716,0.09288678,95893.0,95876.0,0.09760086]
[1735268050914,0.052212,95892.0,95885.0,0.052216]
[1735268051211,0.052213,95891.0,95886.0,0.10130086]
[1735268051403,0.052213,95891.0,95887.0,0.10871827]
[1735268051607,0.052213,95891.0,95888.0,0.10871827]
[1735268051811,0.052213,95891.0,95889.0,0.10871543]
[1735268052016,0.052213,95891.0,95890.0,0.07171944]
[1735268052317,0.055213,95891.0,95890.0,0.15501324]
[1735268052521,0.055213,95891.0,95890.0,0.15500973]
[1735268052710,0.055213,95891.0,95890.0,0.13526971]
[1735268052911,0.055213,95891.0,95890.0,0.1218717]
[1735268053112,0.055213,95891.0,95890.0,0.36746563]
[1735268053310,0.055213,95891.0,95890.0,0.35677406]
[1735268053513,0.055213,95891.0,95890.0,0.42645892]
[1735268054222,0.056213,95891.0,95890.0,0.42645892]
[1735268054418,0.056213,95891.0,95890.0,0.39161649]
[1735268056210,0.056213,95891.0,95890.0,0.37111715]
[1735268056414,0.056213,95891.0,95890.0,0.39159966]
[1735268056815,0.056213,95891.0,95890.0,0.42641547]
[1735268057219,0.03271821,95891.0,95890.0,0.63225062]
[1735268057523,8.655e-05,95891.0,95890.0,0.63225062]
[1735268057826,0.09459221,95900.0,95890.0,0.63225062]
[1735268058022,0.09459221,95900.0,95891.0,0.18095799]
[1735268058222,0.09459221,95900.0,95892.0,0.08634399]
[1735268058423,0.09459221,95900.0,95893.0,0.06313318]
[1735268058617,0.05221,95897.0,95894.0,0.12293137]
[1735268058833,0.05221,95895.0,95894.0,0.09275732]
[1735268059016,0.05221,95895.0,95894.0,0.12246453]
[1735268060025,0.05221,95895.0,95894.0,0.57389361]
[1735268060414,0.05321,95895.0,95894.0,0.59991703]
[1735268060816,0.001,95895.0,95894.0,0.59991703]
[1735268061024,0.00092,95924.0,95894.0,0.67320975]
[1735268061210,0.0647,95937.0,95903.0,0.0939441]
[1735268061411,0.052195,95924.0,95904.0,0.31443543]
[1735268061623,0.052195,95924.0,95910.0,0.0939441]
[1735268061819,0.05219,95932.0,95911.0,0.25263544]
[1735268062026,0.05219,95932.0,95924.0,0.052194]
[1735268062216,0.05219,95932.0,95926.0,0.052193]
[1735268062411,0.05219,95932.0,95927.0,0.17774353]
[1735268062624,0.05219,95932.0,95928.0,0.11304353]
[1735268062935,0.05219,95932.0,95929.0,0.17284172]
[1735268063115,0.05219,95932.0,95930.0,0.17284172]
[1735268063316,0.05219,95932.0,95931.0,0.11304353]
[1735268063516,0.05219,95932.0,95931.0,0.17284172]
[1735268064427,0.05219,95932.0,95931.0,0.43930472]
[1735268064611,0.05219,95932.0,95931.0,0.50370472]
[1735268064811,0.05219,95932.0,95931.0,0.45964344]
[1735268065228,0.05219,95932.0,95931.0,0.51327431]
[1735268065527,0.05219,95932.0,95931.0,0.13755586]
[1735268065720,0.05219,95932.0,95931.0,0.14326489]
[1735268066427,0.02870164,95932.0,95931.0,0.21331156]
[1735268066730,0.02870164,95932.0,95931.0,0.35426366]
[1735268067526,0.02870164,95932.0,95931.0,0.31494525]
[1735268067727,0.02870164,95932.0,95931.0,0.35423599]
[1735268067912,0.02870164,95932.0,95931.0,0.11400877]
[1735268068120,0.02870164,95932.0,95931.0,0.1673865]
[1735268068517,0.02870164,95932.0,95931.0,0.18033888]
[1735268068928,0.02870164,95932.0,95931.0,0.19652935]
[1735268069624,0.02870164,95932.0,95931.0,0.18357697]
[1735268069825,0.02870164,95932.0,95931.0,0.19652935]
[1735268070721,0.02870164,95932.0,95931.0,0.18357697]
[1735268070918,0.02870164,95932.0,95931.0,0.19652935]
[1735268071119,0.02870164,95932.0,95931.0,0.19650883]
[1735268071926,0.02870164,95932.0,95931.0,0.16737119]
[1735268073426,0.052199,95916.0,95911.0,0.01619487]
[1735268073621,0.052203,95909.0,95908.0,0.35209068]
[1735268074023,0.052209,95898.0,95897.0,0.24465097]
[1735268074224,0.0675,95915.0,95897.0,0.24465097]
[1735268074529,0.0939441,95907.0,95897.0,0.24465097]
[1735268074923,0.052209,95898.0,95897.0,0.24465097]
[1735268075519,0.0939441,95907.0,95895.0,0.00056]
[1735268075725,0.052211,95894.0,95891.0,0.0649]
[1735268076020,0.02871574,95894.0,95892.0,0.04358488]
[1735268076225,0.02871574,95894.0,95891.0,0.0649]
[1735268076931,0.02871574,95894.0,95892.0,0.04360984]
[1735268077234,0.02871574,95894.0,95892.0,0.04460984]
[1735268077434,0.02871574,95894.0,95893.0,0.04360984]
[1735268078630,0.0939441,95907.0,95893.0,0.04360984]
[1735268078833,0.0939441,95907.0,95893.0,0.09582084]
[1735268079138,0.01279782,95909.0,95894.0,0.04360984]
[1735268079328,0.05219,95932.0,95901.0,0.052207]
[1735268079530,0.03340026,95932.0,95929.0,0.052192]
[1735268079735,0.052186,95940.0,95930.0,0.1922]
[1735268080037,0.052186,95940.0,95937.0,0.052187]
[1735268080229,0.052186,95940.0,95938.0,0.04360984]
[1735268080628,0.052186,95940.0,95939.0,0.04360984]
[1735268080830,0.053186,95940.0,95939.0,0.04360984]
[1735268081432,0.053186,95940.0,95939.0,0.11185382]
[1735268081731,0.001,95940.0,95890.0,0.09406701]
[1735268081938,0.0939441,95920.0,95918.0,0.052197]
[1735268082128,0.052194,95925.0,95919.0,0.13576708]
[1735268082332,0.052194,95925.0,95920.0,0.04095081]
[1735268082631,0.052195,95923.0,95921.0,0.07346911]
[1735268082834,0.052195,95923.0,95922.0,0.07346911]
[1735268083427,0.0939441,95928.0,95922.0,0.11181802]
[1735268083630,0.0939441,95928.0,95923.0,0.03834891]
[1735268083832,0.0939441,95928.0,95922.0,0.07346911]
[1735268083833,0.052194,95925.0,95924.0,0.07929972]
[1735268084030,0.052194,95925.0,95924.0,0.03834891]
[1735268084229,0.0939441,95928.0,95924.0,0.03834891]
[1735268084536,0.0939441,95928.0,95925.0,0.03834891]
[1735268084735,0.0645,95939.0,95926.0,0.03834891]
[1735268084934,0.052192,95928.0,95927.0,0.03834891]
[1735268085333,0.052192,95928.0,95927.0,0.06231269]
[1735268085937,0.052192,95928.0,95927.0,0.06231684]
[1735268086136,0.053192,95928.0,95927.0,0.06231684]
[1735268086640,0.052192,95928.0,95927.0,0.10179064]
[1735268086839,0.054192,95928.0,95927.0,0.10179064]
[1735268087245,0.052192,95928.0,95927.0,0.10179064]
[1735268087432,0.054192,95928.0,95927.0,0.10179064]
[1735268089034,0.054192,95928.0,95927.0,0.10187414]
[1735268089440,0.002,95928.0,95927.0,0.10187414]
[1735268089636,0.002,95928.0,95927.0,0.1278489]
[1735268089945,0.054192,95928.0,95927.0,0.1278489]
[1735268090538,0.054192,95928.0,95927.0,0.1428894]
[1735268090941,0.03070488,95928.0,95927.0,0.1428894]
[1735268091247,0.04388521,95928.0,95927.0,0.1428894]
[1735268091640,0.04388521,95928.0,95927.0,0.07744084]
[1735268091844,0.04388521,95928.0,95927.0,0.12256067]
[1735268092040,0.04388521,95928.0,95927.0,0.12261619]
[1735268092242,0.04388521,95928.0,95927.0,0.16119475]
[1735268092439,0.04388521,95928.0,95927.0,0.1193139]
[1735268092746,0.04388521,95928.0,95927.0,0.16119375]
[1735268093146,0.04388521,95928.0,95927.0,0.19467894]
[1735268093340,0.01318033,95928.0,95927.0,0.19467894]
[1735268093547,0.052192,95928.0,95927.0,0.19467894]
[1735268093748,0.03184746,95928.0,95927.0,0.19467894]
[1735268094450,0.11031659,95941.0,95927.0,0.19467894]
[1735268094451,0.10954304,95941.0,95927.0,0.19467894]
[1735268094647,0.10954304,95941.0,95928.0,0.13451861]
[1735268094852,0.052186,95940.0,95929.0,0.10037349]
[1735268095058,0.052191,95930.0,95923.0,0.052195]
[1735268095257,0.0334013,95930.0,95924.0,0.13311678]
[1735268095447,0.10954304,95941.0,95925.0,0.100373]
[1735268095755,0.052192,95929.0,95926.0,0.14190182]
[1735268095950,0.052192,95929.0,95927.0,0.08290965]
[1735268096150,0.052192,95929.0,95928.0,0.14190182]
[1735268097149,0.10954304,95941.0,95928.0,0.14190182]
[1735268097355,0.10954304,95941.0,95929.0,0.14190182]
[1735268097550,0.052191,95931.0,95930.0,0.08290965]
[1735268097857,0.052191,95931.0,95930.0,0.14190182]
[1735268098157,0.052191,95931.0,95930.0,0.14175803]
[1735268099053,0.053191,95931.0,95930.0,0.10318925]
[1735268099253,0.056191,95931.0,95930.0,0.10318925]
[1735268099755,0.056191,95931.0,95930.0,0.12086214]
[1735268101149,0.07266635,95931.0,95930.0,0.12086214]
[1735268101353,0.07266635,95931.0,95930.0,0.10609795]
[1735268101550,0.07266635,95931.0,95930.0,0.12084971]
[1735268102745,0.07266635,95931.0,95930.0,0.07660558]
[1735268103161,0.07266635,95931.0,95930.0,0.07660584]
[1735268103353,0.07266635,95931.0,95930.0,0.06374096]
[1735268103555,0.07266635,95931.0,95930.0,0.12085913]
[1735268103754,0.07266635,95931.0,95930.0,0.43287358]
[1735268104463,0.07266635,95931.0,95930.0,0.12085913]
[1735268104654,0.00742253,95931.0,95930.0,0.15947905]
[1735268104855,0.09317055,95941.0,95930.0,0.15947905]
[1735268105055,0.05219,95932.0,95931.0,0.06185436]
[1735268105360,0.05219,95932.0,95931.0,0.10610737]
[1735268105958,0.02870198,95932.0,95927.0,0.37449591]
[1735268106157,0.0621,95931.0,95927.0,0.27359591]
[1735268106458,0.052192,95928.0,95927.0,0.12025809]
[1735268107460,0.052196,95922.0,95921.0,0.3125696]
[1735268108350,0.052205,95904.0,95898.0,0.052208]
[1735268109562,0.052205,95904.0,95897.0,0.4375635]
[1735268109865,0.02610782,95893.0,95891.0,0.4375635]
[1735268110055,0.02610782,95893.0,95892.0,0.03714622]
[1735268110256,0.0939441,95901.0,95891.0,0.4375635]
[1735268111066,0.052211,95893.0,95891.0,0.4375635]
[1735268111374,0.0939441,95901.0,95890.0,0.00012291]
[1735268111375,0.052212,95891.0,95890.0,0.00012291]
[1735268112466,0.052212,95891.0,95890.0,0.00612291]
[1735268112665,0.052212,95891.0,95890.0,0.00912291]
[1735268113866,0.052212,95891.0,95890.0,0.00312291]
[1735268114362,0.052212,95891.0,95890.0,0.00512291]
[1735268114570,0.02071516,95904.0,95890.0,0.00212291]
[1735268114771,0.052208,95899.0,95891.0,0.052212]
[1735268115467,0.052205,95905.0,95896.0,0.05221]
[1735268115664,0.052205,95905.0,95897.0,0.0659]
[1735268115965,0.02249389,95919.0,95898.0,0.11699246]
[1735268116167,0.0939441,95930.0,95900.0,0.0939441]
[1735268116368,0.052193,95928.0,95919.0,0.052197]
[1735268116574,0.052193,95928.0,95922.0,0.052195]
[1735268116757,0.052193,95928.0,95923.0,0.0195452]
[1735268116961,0.052193,95928.0,95922.0,0.052195]
[1735268116962,0.052193,95928.0,95924.0,0.0195452]
[1735268117161,0.052193,95928.0,95925.0,0.0195452]
[1735268117364,0.052193,95928.0,95926.0,0.06245765]
[1735268117561,0.052193,95928.0,95927.0,0.06245765]
[1735268117761,0.053193,95928.0,95927.0,0.06245765]
[1735268117964,0.053193,95928.0,95927.0,0.08514816]
[1735268118174,0.057193,95928.0,95927.0,0.08514816]
[1735268118364,0.058193,95928.0,95927.0,0.08514816]
[1735268118765,0.058193,95928.0,95927.0,0.08614816]
[1735268119872,0.053193,95928.0,95927.0,0.08614816]
[1735268120264,0.053193,95928.0,95927.0,0.08514816]
[1735268120676,0.001,95928.0,95927.0,0.08514816]
[1735268120868,0.0939441,95940.0,95927.0,0.08514816]
[1735268121073,0.0939441,95940.0,95928.0,0.08514816]
[1735268121074,0.052189,95934.0,95928.0,0.08514816]
[1735268121275,0.052189,95934.0,95929.0,0.02269051]
[1735268121574,0.052189,95934.0,95930.0,0.08514816]
[1735268121770,0.052189,95934.0,95931.0,0.08519286]
[1735268121975,0.052189,95934.0,95932.0,0.08519286]
[1735268122178,0.052189,95934.0,95933.0,0.04228041]
[1735268122363,0.052189,95934.0,95933.0,0.08519286]
[1735268123380,0.053189,95934.0,95933.0,0.08519286]
[1735268123585,0.053189,95934.0,95933.0,0.08530115]
[1735268124082,0.052189,95934.0,95933.0,0.08534267]
[1735268124377,0.053189,95934.0,95933.0,0.08534267]
[1735268125982,0.03440024,95934.0,95933.0,0.102525]
[1735268127082,0.03440024,95934.0,95933.0,0.08534267]
[1735268127285,0.03440024,95934.0,95933.0,0.08672149]
[1735268127985,0.03440024,95934.0,95933.0,0.15227625]
[1735268128174,0.001,95934.0,95933.0,0.15227625]
[1735268128378,0.053189,95934.0,95933.0,0.15227625]
[1735268129080,0.053189,95934.0,95933.0,0.08672149]
[1735268129982,0.053189,95934.0,95933.0,0.11259775]
[1735268130286,0.053189,95934.0,95933.0,0.11259622]
[1735268130587,0.0939441,95943.0,95933.0,0.12730956]
[1735268130786,0.052189,95935.0,95934.0,0.06968431]
[1735268130987,0.052189,95935.0,95934.0,0.1273101]
[1735268131484,0.052189,95935.0,95934.0,0.11259676]
[1735268131887,0.052189,95935.0,95934.0,0.0867205]
[1735268132970,0.052189,95935.0,95934.0,0.11260521]
[1735268133177,0.052176,95959.0,95942.0,0.052185]
[1735268133375,0.052178,95956.0,95949.0,0.052181]
[1735268133580,0.0204381,95955.0,95950.0,0.24707276]
[1735268133781,0.052174,95963.0,95950.0,0.24707276]
[1735268133782,0.052174,95963.0,95951.0,0.10850607]
[1735268134081,0.052174,95963.0,95956.0,0.052177]
[1735268134282,0.052174,95963.0,95957.0,0.13479736]
[1735268134489,0.052174,95963.0,95958.0,0.12620368]
[1735268134681,0.07259577,95963.0,95959.0,0.08262136]
[1735268134884,0.07259577,95963.0,95960.0,0.14429001]
[1735268135087,0.07259577,95963.0,95961.0,0.06189438]
[1735268135291,0.07259577,95963.0,95962.0,0.06189438]
[1735268135591,0.04911875,95963.0,95962.0,0.14475925]
[1735268135980,0.02042177,95963.0,95962.0,0.23558603]
[1735268136183,0.02042177,95963.0,95962.0,0.19699798]
[1735268136184,0.004,95963.0,95962.0,0.19699798]
[1735268136378,0.004,95963.0,95962.0,0.1728241]
[1735268136884,0.056174,95963.0,95962.0,0.1728241]
[1735268137087,0.056174,95963.0,95962.0,0.13024178]
[1735268137490,0.055174,95963.0,95962.0,0.13024178]
[1735268137789,0.055174,95963.0,95962.0,0.1751624]
[1735268138490,0.055174,95963.0,95962.0,0.13024178]
[1735268139078,0.055174,95963.0,95962.0,0.11956292]
[1735268139285,0.055174,95963.0,95962.0,0.17349138]
[1735268139684,0.055174,95963.0,95962.0,0.17348204]
[1735268141490,0.055174,95963.0,95962.0,0.17347953]
[1735268142189,0.055174,95963.0,95962.0,0.1312747]
[1735268142379,0.055174,95963.0,95962.0,0.20172397]
[1735268142583,0.003,95963.0,95962.0,0.20172397]
[1735268142783,0.055174,95963.0,95962.0,0.20172397]
[1735268143886,0.03639031,95963.0,95962.0,0.20172397]
[1735268145091,0.03639031,95963.0,95962.0,0.20154329]
[1735268147784,0.03639031,95963.0,95962.0,0.18643462]
[1735268147989,0.03639031,95963.0,95937.0,0.4375635]
[1735268147990,0.052187,95938.0,95937.0,0.4375635]
[1735268148184,0.052187,95938.0,95937.0,0.51161997]
[1735268148389,0.052187,95938.0,95937.0,0.4375635]
[1735268148801,0.07268564,95938.0,95937.0,0.4375635]
[1735268149496,0.02049864,95938.0,95931.0,0.1183]
[1735268149691,0.052187,95938.0,95937.0,0.005]
[1735268150801,0.052187,95938.0,95937.0,0.002]
[1735268150991,0.02869949,95938.0,95937.0,0.004]
[1735268151191,0.02061295,95947.0,95937.0,0.004]
[1735268151394,0.0939441,95950.0,95938.0,0.03857022]
[1735268151593,0.052182,95947.0,95939.0,0.0718282]
[1735268151789,0.052182,95947.0,95942.0,0.052184]
[1735268152105,0.052178,95955.0,95946.0,0.052182]
[1735268152297,0.052178,95955.0,95947.0,0.03857022]
[1735268152489,0.0939441,95960.0,95948.0,0.03857022]
[1735268152693,0.06133102,95960.0,95949.0,0.07180908]
[1735268152904,0.06133102,95960.0,95950.0,0.03857022]
[1735268153203,0.06133102,95960.0,95951.0,0.0744466]
[1735268153403,0.06133102,95960.0,95952.0,0.1351466]
[1735268153588,0.06233102,95960.0,95953.0,0.0744466]
[1735268153790,0.052178,95954.0,95952.0,0.0607]
[1735268153990,0.052178,95954.0,95953.0,0.03958006]
[1735268154191,0.052178,95954.0,95953.0,0.07545841]
[1735268154602,0.02869622,95954.0,95953.0,0.07545841]
[1735268155001,0.06233102,95960.0,95953.0,0.07545841]
[1735268155195,0.06233102,95960.0,95954.0,0.03958006]
[1735268155503,0.052177,95956.0,95955.0,0.04131117]
[1735268155895,0.052177,95956.0,95955.0,0.09228149]
[1735268156809,0.053177,95956.0,95955.0,0.09228149]
[1735268157118,0.053177,95956.0,95955.0,0.05096673]
[1735268157609,0.053177,95956.0,95955.0,0.0509731]
[1735268157909,0.053177,95956.0,95955.0,0.0917642]
[1735268158112,0.053177,95956.0,95955.0,0.16224582]
[1735268158910,0.054177,95956.0,95955.0,0.16224582]
[1735268159109,0.03539113,95956.0,95955.0,0.1201063]
[1735268159419,0.03539113,95956.0,95955.0,0.16164761]
[1735268160012,0.03539113,95956.0,95955.0,0.1338929]
[1735268160313,0.03539113,95956.0,95955.0,0.1568376]
[1735268162519,0.03539113,95956.0,95955.0,0.20249712]
[1735268163004,0.002,95956.0,95955.0,0.20249712]
[1735268163204,0.002,95956.0,95955.0,0.17941347]
[1735268164009,0.054177,95956.0,95955.0,0.17941347]
[1735268165117,0.054177,95956.0,95955.0,0.14207246]
[1735268165319,0.054177,95956.0,95955.0,0.20551418]
[1735268165619,0.02156314,95956.0,95955.0,0.24694797]
[1735268165921,0.02031901,95964.0,95955.0,0.24694797]
[1735268165922,0.01840011,95964.0,95955.0,0.24704524]
[1735268166125,0.052177,95957.0,95956.0,0.16105179]
[1735268166313,0.052177,95957.0,95956.0,0.20561145]
[1735268166722,0.052177,95957.0,95956.0,0.24580995]
[1735268166925,0.052177,95957.0,95956.0,0.20561145]
[1735268167422,0.053177,95957.0,95956.0,0.20561145]
[1735268167723,0.053177,95957.0,95956.0,0.20562213]
[1735268168419,0.053177,95957.0,95956.0,0.20374541]
[1735268168821,0.054177,95957.0,95956.0,0.20374541]
[1735268169319,0.054177,95957.0,95956.0,0.28057481]
[1735268169320,0.02808589,95957.0,95956.0,0.28057481]
[1735268169619,0.00460408,95957.0,95956.0,0.28057481]
[1735268169826,0.002,95957.0,95956.0,0.28057481]
[1735268170216,0.002,95957.0,95956.0,0.24404725]
[1735268170922,0.054177,95957.0,95956.0,0.24404725]
[1735268172024,0.054177,95957.0,95956.0,0.20374541]
[1735268173016,0.0215635,95957.0,95956.0,0.20374541]
[1735268173322,0.04358081,95957.0,95956.0,0.20374541]
[1735268173523,0.0215635,95957.0,95956.0,0.20374541]
[1735268173918,0.052174,95962.0,95956.0,0.27992037]
[1735268174220,0.03339051,95962.0,95957.0,0.15693515]
[1735268174524,0.03339051,95962.0,95958.0,0.19222914]
[1735268174725,0.052174,95961.0,95959.0,0.19222914]
[1735268174925,0.052174,95961.0,95960.0,0.15612261]
[1735268175326,0.052174,95961.0,95960.0,0.24377704]
[1735268175630,0.001,95962.0,95960.0,0.24377704]
[1735268175828,0.052174,95962.0,95961.0,0.21928359]
[1735268176025,0.052174,95962.0,95961.0,0.27906756]
[1735268176529,0.052174,95962.0,95961.0,0.24377704]
[1735268176929,0.052174,95962.0,95961.0,0.44729537]
[1735268177720,0.052174,95962.0,95961.0,0.40528021]
[1735268178025,0.052174,95962.0,95961.0,0.20176188]
[1735268178425,0.052174,95962.0,95961.0,0.24425204]
[1735268179327,0.052174,95962.0,95961.0,0.20276188]
[1735268179631,0.052174,95962.0,95961.0,0.24423306]
[1735268180234,0.02608523,95962.0,95961.0,0.2817876]
[1735268181128,0.02225357,95966.0,95961.0,0.2817876]
[1735268181431,0.0939441,95971.0,95962.0,0.19444656]
[1735268181620,0.0939441,95971.0,95963.0,0.19444656]
[1735268181826,0.0939441,95971.0,95964.0,0.19444656]
[1735268182033,0.0939441,95971.0,95965.0,0.25964656]
[1735268182234,0.0939441,95971.0,95966.0,0.28044001]
[1735268182435,0.0939441,95971.0,95967.0,0.19444656]
[1735268182651,0.052169,95970.0,95968.0,0.28044001]
[1735268182935,0.052169,95970.0,95969.0,0.49287821]
[1735268183229,0.01955933,95970.0,95969.0,0.56615743]
[1735268183433,0.052169,95970.0,95969.0,0.57819279]
[1735268183632,0.052169,95970.0,95969.0,0.61843379]
[1735268183834,0.052169,95970.0,95969.0,0.65456583]
[1735268184230,0.052169,95970.0,95969.0,0.48330047]
[1735268185030,0.02869137,95970.0,95969.0,0.48330047]
[1735268185430,0.11219313,95978.0,95969.0,0.48330047]
[1735268185635,0.02216636,95978.0,95970.0,0.09142176]
[1735268185831,0.052169,95971.0,95969.0,0.28991497]
[1735268186031,0.052169,95971.0,95970.0,0.19768958]
[1735268186331,0.052169,95971.0,95970.0,0.1976806]
[1735268186535,0.052169,95971.0,95970.0,0.28373486]
[1735268186740,0.052169,95971.0,95970.0,0.48765638]
[1735268187730,0.052169,95971.0,95970.0,0.24765301]
[1735268189136,0.03338693,95971.0,95970.0,0.24765301]
[1735268191243,0.03338693,95971.0,95970.0,0.2471187]
[1735268191443,0.03338693,95971.0,95970.0,0.28363756]
[1735268191744,0.11638492,95979.0,95970.0,0.28363756]
[1735268191929,0.11638492,95979.0,95971.0,0.1975833]
[1735268192134,0.11638492,95979.0,95972.0,0.1975833]
[1735268192339,0.11638492,95979.0,95973.0,0.19992617]
[1735268192637,0.11638492,95979.0,95974.0,0.19992617]
[1735268192840,0.11638492,95979.0,95975.0,0.19879238]
[1735268193137,0.052165,95978.0,95976.0,0.28484664]
[1735268193341,0.052165,95978.0,95977.0,0.19879238]
[1735268193539,0.01955945,95978.0,95977.0,0.28484664]
[1735268193745,0.02244082,95979.0,95977.0,0.28484664]
[1735268193936,0.052165,95979.0,95978.0,0.28484664]
[1735268195244,0.052165,95979.0,95978.0,0.2988082]
[1735268195447,0.052165,95979.0,95978.0,0.286337]
[1735268195646,0.11651317,95986.0,95978.0,0.286337]
[1735268195842,0.11651317,95986.0,95979.0,0.28236959]
[1735268195843,0.052164,95980.0,95979.0,0.28236959]
[1735268196144,0.09955386,95986.0,95979.0,0.31888759]
[1735268196347,0.052164,95980.0,95979.0,0.11860571]
[1735268196641,0.02256907,95986.0,95979.0,0.19895365]
[1735268196852,0.0015635,95988.0,95986.0,0.052161]
[1735268197145,0.052154,95998.0,95987.0,0.32725365]
[1735268197339,0.052154,95998.0,95988.0,0.19895365]
[1735268197539,0.052154,95998.0,95989.0,0.19895365]
[1735268197741,0.052154,95998.0,95990.0,0.19895365]
[1735268197942,0.052154,95998.0,95992.0,0.052157]
[1735268198240,0.052154,95998.0,95993.0,0.35074488]
[1735268198241,0.052156,95996.0,95993.0,0.35074488]
[1735268198437,0.02471336,95998.0,95995.0,0.37456596]
[1735268198652,0.052147,96011.0,96002.0,0.052152]
[1735268198854,0.052147,96011.0,96004.0,0.052151]
[1735268199949,0.052147,96011.0,96004.0,0.42671696]
[1735268200152,0.052149,96007.0,96005.0,0.07446951]
[1735268200354,0.02868126,96007.0,96006.0,0.17746253]
[1735268200539,0.02868126,96007.0,96006.0,0.14651855]
[1735268200742,0.02868126,96007.0,96006.0,0.29381173]
[1735268200939,0.02868126,96007.0,96006.0,0.28990044]
[1735268201243,0.03268126,96007.0,96006.0,0.24521873]
[1735268201849,0.02868126,96007.0,96006.0,0.24521873]
[1735268202149,0.02968126,96007.0,96006.0,0.17290069]
[1735268202349,0.1109408,96013.0,96006.0,0.24419114]
[1735268202652,0.1109408,96013.0,96007.0,0.12359305]
[1735268202855,0.1109408,96013.0,96008.0,0.12359305]
[1735268203051,0.1109408,96013.0,96009.0,0.12359305]
[1735268203242,0.052147,96012.0,96010.0,0.12359305]
[1735268203554,0.1109408,96013.0,96011.0,0.19855943]
[1735268203754,0.1109408,96013.0,96012.0,0.12359305]
[1735268203958,0.1109408,96013.0,96012.0,0.19855943]
[1735268204145,0.1119408,96013.0,96012.0,0.19855943]
[1735268204855,0.1109408,96013.0,96012.0,0.19855943]
[1735268205056,0.1650868,96013.0,96012.0,0.19855943]
[1735268205259,0.1650868,96013.0,96012.0,0.24420132]
[1735268205755,0.1650868,96013.0,96012.0,0.24520132]
[1735268206557,0.1650868,96013.0,96012.0,0.19955943]
[1735268207257,0.1650868,96013.0,96012.0,0.24520116]
[1735268207954,0.1028868,96013.0,96012.0,0.24520116]
[1735268208357,0.054146,96013.0,96012.0,0.24520116]
[1735268208650,0.0225154,96015.0,96012.0,0.28953723]
[1735268208855,0.17618799,96031.0,96012.0,0.28953723]
[1735268208856,0.0939441,96030.0,96013.0,0.37112749]
[1735268209061,0.0939441,96030.0,96014.0,0.16792749]
[1735268209360,0.0939441,96024.0,96015.0,0.16737791]
[1735268209555,0.0939441,96024.0,96016.0,0.24420116]
[1735268209860,0.1878882,96030.0,96017.0,0.12710733]
[1735268210055,0.052144,96018.0,96017.0,0.12060811]
[1735268210255,0.052144,96018.0,96017.0,0.24771346]
[1735268210858,0.02867721,96018.0,96017.0,0.24771346]
[1735268211562,0.001,96024.0,96017.0,0.29715293]
[1735268211859,0.052143,96019.0,96018.0,0.17654482]
[1735268212161,0.052143,96019.0,96018.0,0.29715293]
[1735268212363,0.052143,96019.0,96018.0,0.25153665]
[1735268212554,0.052143,96019.0,96018.0,0.29716958]
[1735268212757,0.052143,96019.0,96018.0,0.29716823]
[1735268212958,0.053143,96019.0,96018.0,0.29716823]
[1735268213163,0.053143,96019.0,96018.0,0.25153665]
[1735268213462,0.053143,96019.0,96018.0,0.29717047]
[1735268213655,0.2400252,96030.0,96018.0,0.29717047]
[1735268213857,0.2400252,96030.0,96019.0,0.17656236]
[1735268214057,0.052142,96021.0,96020.0,0.17656275]
[1735268214355,0.052142,96021.0,96020.0,0.29717086]
[1735268214748,0.26271628,96030.0,96020.0,0.29717086]
[1735268214952,0.052141,96022.0,96021.0,0.13092854]
[1735268215152,0.052141,96022.0,96021.0,0.17656211]
[1735268215557,0.02867262,96022.0,96021.0,0.29717022]
[1735268216254,0.02967262,96022.0,96021.0,0.29717022]
[1735268216958,0.02967262,96022.0,96021.0,0.25153665]
[1735268217265,0.02967262,96022.0,96021.0,0.29717107]
[1735268218558,0.001,96022.0,96021.0,0.29717107]
[1735268218759,0.07482808,96030.0,96021.0,0.29717234]
[1735268218964,0.052141,96022.0,96021.0,0.12060811]
[1735268219165,0.052141,96022.0,96021.0,0.29711061]
[1735268220558,0.052141,96022.0,96021.0,0.23634097]
[1735268220865,0.052141,96022.0,96021.0,0.20048861]
[1735268221066,0.052141,96022.0,96021.0,0.33282321]
[1735268221258,0.07582808,96030.0,96021.0,0.29631706]
[1735268221459,0.07582808,96030.0,96022.0,0.17570729]
[1735268221769,0.05214,96024.0,96023.0,0.17570729]
[1735268222065,0.05214,96024.0,96023.0,0.29631706]
[1735268222265,0.07482808,96030.0,96023.0,0.29631706]
[1735268222470,0.05214,96025.0,96024.0,0.17570729]
[1735268222661,0.05214,96025.0,96024.0,0.29631706]
[1735268223363,0.03336557,96025.0,96024.0,0.29647248]
[1735268223866,0.07482808,96030.0,96024.0,0.29647248]
[1735268224074,0.07482808,96030.0,96025.0,0.17586271]
[1735268224253,0.052139,96026.0,96025.0,0.12060977]
[1735268224452,0.052139,96026.0,96025.0,0.29651087]
[1735268225968,0.02867181,96026.0,96025.0,0.29651087]
[1735268226355,0.00259709,96026.0,96025.0,0.33356357]
[1735268226660,0.07482808,96030.0,96025.0,0.33356357]
[1735268226863,0.07482808,96030.0,96026.0,0.2129538]
[1735268227059,0.052137,96029.0,96027.0,0.33356357]
[1735268227260,0.00650629,96029.0,96028.0,0.17644919]
[1735268227465,0.052137,96029.0,96028.0,0.29705896]
[1735268228572,0.07482808,96030.0,96028.0,0.29705896]
[1735268228761,0.07482808,96030.0,96029.0,0.29705896]
[1735268228962,0.07482808,96030.0,96029.0,0.1070281]
[1735268229270,0.07482808,96030.0,96029.0,1e-07]
[1735268230063,0.07582808,96030.0,96029.0,1e-07]
[1735268230570,0.05235936,96030.0,96029.0,1e-07]
[1735268231072,0.05235936,96030.0,96029.0,0.03650466]
[1735268231965,0.05235936,96030.0,96029.0,1e-07]
[1735268232369,0.05235936,96030.0,96029.0,0.03650443]